bitfinex/quotes_SOLUSD_20241111
["timestamp","ask_amount","ask_price","bid_price","bid_amount"]
[1731303294775,50.29467275,205.3,205.23,55.16717275]
[1731303295174,50.29467275,205.31,205.23,55.16717275]
[1731303295485,55.16537275,205.31,205.23,55.16717275]
[1731303295983,4.8707,205.31,205.25,50.29467275]
[1731303296369,50.29467275,205.32,205.25,50.29467275]
[1731303296781,50.29467275,205.33,205.25,50.29467275]
[1731303297289,50.29467275,205.33,205.26,50.29467275]
[1731303297479,50.29467275,205.34,205.27,50.29467275]
[1731303297782,55.16477275,205.34,205.27,50.29467275]
[1731303298871,35.74150845,205.34,205.26,30.87140845]
[1731303299399,35.74150845,205.34,205.08,30.87140845]
[1731303299400,30.87140845,205.31,205.23,30.87140845]
[1731303299596,30.87140845,205.3,205.22,30.87140845]
[1731303299891,30.87140845,205.28,205.2,30.87140845]
[1731303300075,30.87140845,205.29,205.22,30.87140845]
[1731303300670,30.87140845,205.27,205.2,30.87140845]
[1731303300880,30.87140845,205.27,205.2,35.74460845]
[1731303301597,15.8376,205.32,205.2,35.74460845]
[1731303301598,30.87140845,205.29,205.22,30.87140845]
[1731303301775,35.74240845,205.3,205.23,30.87140845]
[1731303302272,35.74150845,205.34,205.27,30.87140845]
[1731303302791,4.8679,205.43,205.33,30.87140845]
[1731303303002,30.87140845,205.42,205.35,30.87140845]
[1731303303498,37.29620845,205.44,205.37,30.87140845]
[1731303303799,42.16390845,205.44,205.37,30.87140845]
[1731303303987,42.16390845,205.44,205.36,30.87140845]
[1731303304501,37.29620845,205.44,205.36,30.87140845]
[1731303304884,50.11880611,205.44,205.36,50.11880611]
[1731303305084,6.4248,205.49,205.38,50.11880611]
[1731303305085,50.11880611,205.46,205.38,50.11880611]
[1731303305292,50.11880611,205.48,205.4,50.11880611]
[1731303305498,6.4248,205.49,205.42,50.11880611]
[1731303305694,50.11880611,205.47,205.39,50.11880611]
[1731303305891,50.11880611,205.44,205.36,50.11880611]
[1731303306281,50.11880611,205.45,205.38,50.11880611]
[1731303306498,50.11880611,205.47,205.39,50.11880611]
[1731303306689,50.11880611,205.46,205.38,50.11880611]
[1731303306889,50.11880611,205.45,205.38,50.11880611]
[1731303307185,50.11880611,205.45,205.38,54.98760611]
[1731303307391,50.11880611,205.45,205.36,50.11880611]
[1731303307392,50.11880611,205.43,205.36,50.11880611]
[1731303307596,50.11880611,205.42,205.35,50.11880611]
[1731303308202,5.01658135,205.52,205.41,50.11880611]
[1731303308387,50.11880611,205.49,205.41,50.11880611]
[1731303308783,50.11880611,205.49,205.43,50.11880611]
[1731303308994,50.11880611,205.51,205.43,50.11880611]
[1731303309403,50.11880611,205.51,205.43,54.98650611]
[1731303309613,50.11880611,205.53,205.45,50.11880611]
[1731303311388,50.11880611,205.52,205.44,50.11880611]
[1731303311588,50.11880611,205.5,205.43,50.11880611]
[1731303311903,50.11880611,205.5,205.4,4.8685]
[1731303311904,50.11880611,205.51,205.44,50.11880611]
[1731303312091,50.11880611,205.52,205.44,50.11880611]
[1731303312291,50.11880611,205.51,205.43,50.11880611]
[1731303312504,50.11880611,205.51,205.44,50.11880611]
[1731303312998,50.11880611,205.52,205.44,50.11880611]
[1731303313302,50.11880611,205.51,205.44,54.98620611]
[1731303313714,50.11880611,205.52,205.44,54.98620611]
[1731303314390,0.12549,205.52,205.45,50.11880611]
[1731303314598,23.902374,205.52,205.45,50.11880611]
[1731303314793,50.11880611,205.53,205.46,50.11880611]
[1731303315030,50.11880611,205.59,205.51,50.11880611]
[1731303315204,11.0335,205.62,205.54,50.11880611]
[1731303315407,56.28890611,205.62,205.55,50.11880611]
[1731303315613,5.00992884,205.64,205.58,50.11880611]
[1731303315911,4.8614,205.7,205.54,0.1]
[1731303316317,4.8605,205.74,205.56,0.2]
[1731303316812,50.11880611,205.72,205.65,50.11880611]
[1731303317114,50.11880611,205.72,205.63,50.11880611]
[1731303317410,50.11880611,205.72,205.64,50.11880611]
[1731303317817,50.11880611,205.71,205.64,50.11880611]
[1731303318114,50.11880611,205.71,205.59,26.2601]
[1731303318115,50.24429611,205.7,205.62,54.98190611]
[1731303318313,54.97970611,205.72,205.64,50.11880611]
[1731303318515,50.11880611,205.7,205.62,50.11880611]
[1731303318701,50.11880611,205.68,205.6,50.11880611]
[1731303319011,0.12549,205.65,205.6,4.8638]
[1731303319219,50.11880611,205.66,205.58,54.98300611]
[1731303319517,4.8609,205.72,205.57,50.11880611]
[1731303319518,50.11880611,205.63,205.57,50.11880611]
[1731303319701,23.902374,205.64,205.57,54.98330611]
[1731303319894,23.902374,205.64,205.57,50.11880611]
[1731303320098,23.902374,205.62,205.55,50.11880611]
[1731303320295,23.902374,205.62,205.48,0.1]
[1731303320296,50.11880611,205.61,205.53,54.98410611]
[1731303320617,23.776884,205.6,205.53,54.98410611]
[1731303321903,0.12549,205.59,205.52,50.11880611]
[1731303322209,23.776884,205.53,205.46,54.98580611]
[1731303322400,23.776884,205.5,205.43,50.11880611]
[1731303322593,73.89569011,205.48,205.41,50.11880611]
[1731303322799,23.776884,205.48,205.42,50.11880611]
[1731303323219,23.776884,205.49,205.42,50.11880611]
[1731303323396,0.12549,205.48,205.41,50.11880611]
[1731303323602,0.12549,205.48,205.42,50.11880611]
[1731303323809,0.12549,205.48,205.41,50.11880611]
[1731303323994,0.12549,205.46,205.4,50.11880611]
[1731303324195,28.643284,205.49,205.32,65.89730611]
[1731303324196,23.902374,205.44,205.38,50.11880611]
[1731303324619,0.12549,205.44,205.4,50.11880611]
[1731303325122,0.12549,205.45,205.4,50.11880611]
[1731303325706,6.052,205.49,205.32,65.89730611]
[1731303325707,61.03730611,205.49,205.41,50.11880611]
[1731303326014,23.776884,205.48,205.41,50.11880611]
[1731303326191,73.89569011,205.48,205.4,50.11880611]
[1731303326392,0.12549,205.47,205.4,50.11880611]
[1731303326719,50.24429611,205.47,205.39,50.11880611]
[1731303327019,0.12549,205.45,205.39,50.11880611]
[1731303327518,4.99279,205.45,205.38,50.11880611]
[1731303327720,23.776884,205.44,205.39,50.11880611]
[1731303328010,23.902374,205.45,205.39,50.11880611]
[1731303328415,23.776884,205.46,205.39,50.11880611]
[1731303328811,23.776884,205.48,205.44,50.11880611]
[1731303329314,6.052,205.49,205.42,50.11880611]
[1731303329617,50.11880611,205.48,205.41,50.11880611]
[1731303329819,0.12549,205.47,205.41,50.11880611]
[1731303330057,6.052,205.49,205.43,50.11880611]
[1731303330320,71.56940611,205.54,205.47,50.11880611]
[1731303330996,21.4506,205.54,205.47,50.11880611]
[1731303331197,0.12549,205.53,205.47,50.11880611]
[1731303331694,0.12549,205.53,205.48,4.8666]
[1731303331906,23.776884,205.54,205.48,4.8666]
[1731303332111,6.6633,205.55,205.49,50.11880611]
[1731303332321,11.5284,205.55,205.49,50.11880611]
[1731303332499,11.5284,205.55,205.42,0.1]
[1731303332500,4.8646,205.57,205.51,50.11880611]
[1731303332816,0.12549,205.55,205.48,50.11880611]
[1731303333120,0.12549,205.55,205.5,50.11880611]
[1731303333417,0.12549,205.55,205.51,50.11880611]
[1731303333623,50.11880611,205.6,205.51,50.11880611]
[1731303333823,6.6665,205.61,205.54,50.11880611]
[1731303334202,6.6665,205.61,205.56,50.11880611]
[1731303334422,4.8632,205.63,205.56,50.11880611]
[1731303334709,4.8632,205.63,205.43,4.8678]
[1731303334710,0.12549,205.56,205.46,50.11880611]
[1731303334919,0.12549,205.56,205.42,6.5384]
[1731303334920,0.12549,205.55,205.48,50.11880611]
[1731303335222,50.24429611,205.55,205.48,50.11880611]
[1731303335601,50.11880611,205.57,205.5,50.11880611]
[1731303335800,23.776884,205.58,205.52,50.11880611]
[1731303336021,0.12549,205.57,205.52,50.11880611]
[1731303336223,23.776884,205.58,205.52,50.11880611]
[1731303336611,4.8633,205.62,205.55,50.11880611]
[1731303336904,4.863,205.64,205.57,50.11880611]
[1731303337112,0.12549,205.63,205.58,50.11880611]
[1731303337929,4.863,205.64,205.53,50.11880611]
[1731303337930,50.11880611,205.61,205.53,50.11880611]
[1731303338128,50.11880611,205.59,205.51,50.11880611]
[1731303338424,0.12549,205.54,205.47,50.11880611]
[1731303338825,4.99079,205.54,205.47,30.81090158]
[1731303339124,4.99079,205.54,205.46,4.8669]
[1731303339320,0.1,205.61,205.46,4.8669]
[1731303339625,0.12549,205.58,205.46,4.8669]
[1731303339827,23.776884,205.57,205.51,30.81090158]
[1731303340122,0.12549,205.56,205.49,30.81090158]
[1731303340519,30.81090158,205.57,205.49,30.81090158]
[1731303340827,30.81090158,205.56,205.49,30.81090158]
[1731303341012,35.67520158,205.58,205.5,30.81090158]
[1731303341614,30.81090158,205.57,205.5,30.81090158]
[1731303341917,35.67400158,205.63,205.55,30.81090158]
[1731303342114,5.02672309,205.64,205.58,30.81090158]
[1731303342306,46.71800158,205.67,205.6,30.81090158]
[1731303342509,42.27010158,205.71,205.64,30.81090158]
[1731303342715,6.5979,205.71,205.64,30.81090158]
[1731303342912,30.81090158,205.73,205.66,30.81090158]
[1731303343623,4.8605,205.74,205.67,30.81090158]
[1731303343922,30.81090158,205.75,205.67,30.81090158]
[1731303344126,35.67120158,205.75,205.67,30.81090158]
[1731303344506,30.81090158,205.73,205.65,30.81090158]
[1731303345005,30.81090158,205.73,205.65,35.67340158]
[1731303345439,30.93639158,205.72,205.64,30.81090158]
[1731303345618,30.93639158,205.68,205.61,30.81090158]
[1731303345931,30.81090158,205.66,205.59,30.81090158]
[1731303346224,30.81090158,205.63,205.56,30.81090158]
[1731303346422,23.776884,205.72,205.55,4.8649]
[1731303346604,30.81090158,205.67,205.6,30.81090158]
[1731303346811,50.0103452,205.65,205.51,15.6353]
[1731303347016,0.12549,205.65,205.57,50.0103452]
[1731303347221,0.12549,205.63,205.57,50.0103452]
[1731303347428,0.12549,205.63,205.56,50.0103452]
[1731303347911,50.0103452,205.62,205.55,50.0103452]
[1731303348229,0.12549,205.63,205.56,50.0103452]
[1731303348230,50.1358352,205.63,205.56,50.0103452]
[1731303348419,55.30764682,205.63,205.56,50.0103452]
[1731303348623,61.81464682,205.63,205.55,54.8752452]
[1731303348807,61.81464682,205.63,205.56,50.0103452]
[1731303349143,66.67784682,205.63,205.56,50.0103452]
[1731303349431,55.18215682,205.62,205.55,54.8752452]
[1731303349812,5.17181162,205.62,205.56,50.0103452]
[1731303350018,5.17181162,205.62,205.57,50.0103452]
[1731303350727,5.17181162,205.66,205.59,50.0103452]
[1731303352515,5.17181162,205.66,205.59,54.8742452]
[1731303352713,5.17181162,205.66,205.6,50.0103452]
[1731303353028,5.15519955,205.67,205.61,50.0103452]
[1731303354315,5.15519955,205.67,205.63,50.0103452]
[1731303355728,5.15519955,205.67,205.62,50.0103452]
[1731303356129,5.15519955,205.67,205.61,50.0103452]
[1731303356337,5.15519955,205.67,205.62,50.0103452]
[1731303358527,5.15519955,205.67,205.63,50.0103452]
[1731303358740,6.3963,205.69,205.64,50.0103452]
[1731303359129,0.12549,205.68,205.64,50.0103452]
[1731303359840,5.27096288,205.68,205.62,50.0103452]
[1731303360058,5.14547288,205.67,205.62,50.0103452]
[1731303360339,4.8621,205.67,205.62,50.0103452]
[1731303360633,50.1358352,205.64,205.57,50.0103452]
[1731303360825,50.1358352,205.64,205.56,50.0103452]
[1731303360826,0.12549,205.62,205.56,50.0103452]
[1731303361027,0.12549,205.62,205.57,50.0103452]
[1731303361227,0.12549,205.62,205.58,50.0103452]
[1731303361421,5.06829686,205.63,205.58,50.0103452]
[1731303361949,23.902374,205.62,205.56,50.0103452]
[1731303362123,23.902374,205.6,205.54,50.0103452]
[1731303362627,23.902374,205.6,205.5,4.9661]
[1731303362628,29.16567086,205.6,205.55,50.0103452]
[1731303363616,5.38878686,205.6,205.56,50.0103452]
[1731303363844,23.776884,205.62,205.58,50.0103452]
[1731303364027,4.8621,205.68,205.61,50.0103452]
[1731303364220,11.258,205.69,205.63,50.0103452]
[1731303364738,11.258,205.69,205.52,23.776884]
[1731303364739,0.12549,205.63,205.5,0.1]
[1731303364940,0.12549,205.6,205.5,0.1]
[1731303365241,5.35473019,205.59,205.54,50.0103452]
[1731303365644,56.5796452,205.57,205.5,50.0103452]
[1731303365937,23.776884,205.54,205.48,50.0103452]
[1731303366319,23.776884,205.55,205.5,50.0103452]
[1731303366519,56.5796452,205.57,205.52,50.0103452]
[1731303366520,6.5693,205.57,205.52,50.0103452]
[1731303366733,6.5693,205.57,205.54,50.0103452]
[1731303366934,6.5693,205.57,205.54,30.79346254]
[1731303367142,6.5693,205.57,205.53,30.79346254]
[1731303367518,6.5693,205.57,205.54,30.79346254]
[1731303367717,0.12549,205.56,205.5,30.79346254]
[1731303367939,23.902374,205.56,205.5,30.79346254]
[1731303368147,23.902374,205.56,205.51,30.79346254]
[1731303368637,23.902374,205.56,205.52,30.79346254]
[1731303368841,23.902374,205.56,205.51,30.79346254]
[1731303369039,6.5693,205.57,205.52,30.79346254]
[1731303369233,23.776884,205.61,205.55,30.79346254]
[1731303369561,0.12549,205.58,205.52,30.79346254]
[1731303370317,0.12549,205.58,205.53,30.79346254]
[1731303371728,0.12549,205.58,205.54,30.79346254]
[1731303372843,30.91895254,205.56,205.48,30.79346254]
[1731303373024,30.91895254,205.51,205.43,30.79346254]
[1731303373223,0.12549,205.54,205.43,30.79346254]
[1731303373425,30.79346254,205.52,205.42,4.8679]
[1731303373640,23.776884,205.53,205.46,30.79346254]
[1731303374348,0.12549,205.52,205.46,30.79346254]
[1731303374547,0.12549,205.5,205.45,30.79346254]
[1731303374732,4.8664,205.49,205.42,35.66136254]
[1731303374938,35.65986254,205.49,205.42,4.8679]
[1731303375135,0.12549,205.5,205.43,30.79346254]
[1731303375863,23.776884,205.52,205.45,30.79346254]
[1731303376026,23.776884,205.52,205.46,30.79346254]
[1731303376229,23.776884,205.52,205.45,30.79346254]
[1731303377039,0.12549,205.51,205.45,4.8672]
[1731303377938,0.12549,205.51,205.38,16.5959]
[1731303377939,30.91895254,205.51,205.43,30.79346254]
[1731303378135,41.84625536,205.5,205.42,30.79346254]
[1731303378343,30.79346254,205.5,205.42,30.79346254]
[1731303378554,0.12549,205.49,205.42,30.79346254]
[1731303378927,54.57034654,205.52,205.45,30.79346254]
[1731303379556,35.65896254,205.53,205.45,30.79346254]
[1731303379848,0.12549,205.52,205.46,30.79346254]
[1731303380055,0.12549,205.52,205.45,30.79346254]
[1731303380560,30.79346254,205.49,205.41,30.79346254]
[1731303381151,30.79346254,205.5,205.43,30.79346254]
[1731303381348,30.91895254,205.49,205.42,30.79346254]
[1731303381537,0.12549,205.49,205.41,30.79346254]
[1731303381856,16.0513,205.55,205.41,30.79346254]
[1731303381857,6.0072,205.57,205.48,30.79346254]
[1731303382149,0.12549,205.53,205.46,30.79346254]
[1731303382351,0.12549,205.53,205.44,30.79346254]
[1731303382352,30.79346254,205.51,205.44,30.79346254]
[1731303382535,30.79346254,205.51,205.43,30.79346254]
[1731303383253,30.79346254,205.51,205.44,30.79346254]
[1731303383551,0.12549,205.51,205.45,30.79346254]
[1731303384453,30.79346254,205.49,205.42,30.79346254]
[1731303384852,23.776884,205.52,205.4,4.8685]
[1731303384853,0.12549,205.51,205.45,30.79346254]
[1731303385029,6.0072,205.57,205.47,30.79346254]
[1731303385230,35.65846254,205.55,205.47,30.79346254]
[1731303385434,30.79346254,205.54,205.47,30.79346254]
[1731303385735,0.12549,205.53,205.47,30.79346254]
[1731303386153,0.12549,205.52,205.46,35.66046254]
[1731303386454,0.12549,205.48,205.42,30.79346254]
[1731303386635,30.79346254,205.47,205.4,4.8685]
[1731303386952,0.12549,205.47,205.41,30.79346254]
[1731303387256,30.79346254,205.46,205.4,4.8685]
[1731303387443,30.79346254,205.46,205.39,30.79346254]
[1731303387839,30.79346254,205.47,205.39,30.79346254]
[1731303388350,30.79346254,205.46,205.39,30.79346254]
[1731303388649,30.79346254,205.44,205.36,30.79346254]
[1731303388841,0.12549,205.44,205.37,30.79346254]
[1731303389648,0.12549,205.44,205.37,35.66266254]
[1731303389955,35.66106254,205.44,205.37,4.8692]
[1731303390156,30.91895254,205.43,205.37,4.8692]
[1731303390451,30.79346254,205.41,205.34,30.79346254]
[1731303390641,30.91895254,205.43,205.35,35.66316254]
[1731303390840,30.91895254,205.43,205.36,30.79346254]
[1731303391046,30.91895254,205.43,205.35,35.66316254]
[1731303391245,30.91895254,205.43,205.35,4.8697]
[1731303391246,30.79346254,205.42,205.35,4.8697]
[1731303391952,30.79346254,205.42,205.33,35.66346254]
[1731303391953,30.79346254,205.41,205.33,35.66346254]
[1731303392155,30.79346254,205.39,205.32,30.79346254]
[1731303392345,30.79346254,205.37,205.29,35.66456254]
[1731303392545,4.8682,205.42,205.22,6.2538]
[1731303392546,30.79346254,205.35,205.22,6.2538]
[1731303392846,30.79346254,205.34,205.27,30.79346254]
[1731303393044,30.79346254,205.33,205.26,30.79346254]
[1731303393267,37.15425254,205.36,205.28,30.79346254]
[1731303393437,16.6609,205.39,205.24,0.2]
[1731303393644,6.2353,205.41,205.27,4.8716]
[1731303393844,6.2353,205.41,205.29,0.1]
[1731303394157,16.5196,205.44,205.31,20.0]
[1731303394349,16.5196,205.44,205.39,30.79346254]
[1731303394766,6.2353,205.46,205.39,30.79346254]
[1731303394946,30.79346254,205.45,205.37,30.79346254]
[1731303395338,30.79346254,205.43,205.36,30.79346254]
[1731303395739,0.12549,205.42,205.36,30.79346254]
[1731303395941,0.12549,205.42,205.35,30.79346254]
[1731303396443,0.12549,205.42,205.33,30.79346254]
[1731303396444,0.12549,205.4,205.33,30.79346254]
[1731303396857,30.79346254,205.36,205.29,30.79346254]
[1731303397058,30.79346254,205.35,205.28,35.66476254]
[1731303397359,30.79346254,205.38,205.3,30.79346254]
[1731303397545,30.79346254,205.39,205.32,30.79346254]
[1731303397746,30.79346254,205.39,205.31,30.79346254]
[1731303398060,35.66226254,205.39,205.31,30.79346254]
[1731303399161,35.66226254,205.39,205.32,35.66386254]
[1731303399756,30.79346254,205.39,205.32,35.66386254]
[1731303400058,0.12549,205.41,205.34,30.79346254]
[1731303400252,30.79346254,205.45,205.37,30.79346254]
[1731303400647,0.12549,205.44,205.37,30.79346254]
[1731303400861,30.79346254,205.45,205.38,30.79346254]
[1731303401047,11.1025,205.46,205.39,35.66206254]
[1731303401249,0.12549,205.43,205.37,4.8691]
[1731303401448,30.91895254,205.43,205.35,30.79346254]
[1731303401652,0.12549,205.41,205.35,30.79346254]
[1731303401848,30.79346254,205.41,205.34,30.79346254]
[1731303402065,30.79346254,205.42,205.35,30.79346254]
[1731303402444,0.12549,205.41,205.35,30.79346254]
[1731303402646,30.79346254,205.4,205.33,30.79346254]
[1731303402959,35.78725254,205.41,205.33,35.66346254]
[1731303403163,0.12549,205.41,205.35,30.79346254]
[1731303403462,4.8679,205.43,205.37,30.79346254]
[1731303403762,0.12549,205.42,205.37,30.79346254]
[1731303404269,35.66106254,205.44,205.37,30.79346254]
[1731303404558,30.79346254,205.45,205.38,30.79346254]
[1731303405149,30.79346254,205.45,205.38,35.66226254]
[1731303405547,6.2353,205.46,205.4,30.79346254]
[1731303406566,23.902374,205.45,205.4,30.79346254]
[1731303406948,6.2353,205.46,205.4,30.79346254]
[1731303407149,41.90716254,205.51,205.44,30.79346254]
[1731303407356,41.90716254,205.51,205.41,4.8683]
[1731303407357,6.2476,205.51,205.46,30.79346254]
[1731303408782,6.2476,205.51,205.45,35.66066254]
[1731303409068,30.91895254,205.5,205.43,30.79346254]
[1731303409455,30.91895254,205.5,205.43,20.0]
[1731303409771,30.91895254,205.5,205.43,50.79346254]
[1731303410067,35.78525254,205.5,205.43,50.79346254]
[1731303410467,35.78525254,205.5,205.43,55.66116254]
[1731303410670,30.79346254,205.48,205.41,30.79346254]
[1731303410865,23.902374,205.47,205.4,30.79346254]
[1731303411170,6.2476,205.51,205.41,30.79346254]
[1731303411171,54.57034654,205.49,205.41,30.79346254]
[1731303411550,54.57034654,205.49,205.42,30.79346254]
[1731303411770,54.57034654,205.49,205.41,30.79346254]
[1731303411974,54.57034654,205.49,205.42,30.79346254]
[1731303412480,54.57034654,205.49,205.42,35.66136254]
[1731303412655,59.43684654,205.49,205.42,4.8679]
[1731303412967,59.43684654,205.49,205.42,35.66136254]
[1731303413169,30.79346254,205.47,205.4,30.79346254]
[1731303413359,0.12549,205.48,205.39,35.66216254]
[1731303413360,30.79346254,205.46,205.39,35.66216254]
[1731303413568,28.643384,205.49,205.33,6.3586]
[1731303413569,30.79346254,205.44,205.37,30.79346254]
[1731303413875,30.79346254,205.45,205.37,30.79346254]
[1731303414078,30.79346254,205.45,205.33,6.3586]
[1731303414251,30.79346254,205.44,205.36,30.79346254]
[1731303414552,30.79346254,205.46,205.39,30.79346254]
[1731303414757,6.2476,205.51,205.45,30.79346254]
[1731303414957,6.2476,205.51,205.37,0.2]
[1731303415177,37.38846254,205.56,205.49,30.79346254]
[1731303415661,37.38846254,205.56,205.39,6.3489]
[1731303415662,6.595,205.56,205.53,30.79346254]
[1731303415970,37.38846254,205.56,205.48,30.79346254]
[1731303416156,30.79346254,205.54,205.46,30.79346254]
[1731303416359,0.12549,205.52,205.46,30.79346254]
[1731303416678,4.99119,205.52,205.46,30.79346254]
[1731303416879,23.776884,205.51,205.46,30.79346254]
[1731303417066,4.8651,205.55,205.49,30.79346254]
[1731303417475,0.12549,205.54,205.48,30.79346254]
[1731303417687,0.12549,205.54,205.47,30.79346254]
[1731303418269,23.776884,205.54,205.48,30.79346254]
[1731303418464,23.902374,205.55,205.48,30.79346254]
[1731303418780,23.902374,205.55,205.49,30.79346254]
[1731303419189,23.902374,205.55,205.47,35.66026254]
[1731303419190,30.79346254,205.54,205.47,35.66026254]
[1731303419559,54.69583654,205.53,205.46,30.79346254]
[1731303419763,23.902374,205.51,205.44,30.79346254]
[1731303420110,59.76679567,205.51,205.44,30.79346254]
[1731303420759,23.902374,205.48,205.41,30.79346254]
[1731303420975,59.96179567,205.48,205.41,30.79346254]
[1731303421178,29.16833313,205.48,205.41,30.79346254]
[1731303421360,34.03503313,205.48,205.41,30.79346254]
[1731303421977,5.44651469,205.47,205.42,30.79346254]
[1731303422180,5.44651469,205.47,205.43,30.79346254]
[1731303422378,5.44651469,205.47,205.42,30.79346254]
[1731303423761,23.902374,205.46,205.4,30.79346254]
[1731303423967,0.12549,205.42,205.29,21.8358]
[1731303424190,30.79346254,205.41,205.3,4.8709]
[1731303424385,5.61984802,205.42,205.31,30.79346254]
[1731303424386,23.776884,205.38,205.31,30.79346254]
[1731303424616,23.902374,205.34,205.24,4.8722]
[1731303424896,0.12549,205.3,205.14,15.3942]
[1731303425078,6.85743882,205.29,205.15,4.8744]
[1731303425271,23.902374,205.28,205.15,4.8744]
[1731303425473,23.902374,205.26,205.1,4.8756]
[1731303425673,30.79346254,205.2,205.13,30.79346254]
[1731303426203,23.776884,205.22,205.16,30.79346254]
[1731303426495,0.12549,205.22,205.16,30.79346254]
[1731303426876,0.12549,205.22,205.09,4.8759]
[1731303427096,30.91895254,205.22,205.09,4.8759]
[1731303427280,30.79346254,205.2,205.13,30.79346254]
[1731303427479,30.79346254,205.2,205.12,30.79346254]
[1731303427788,30.79346254,205.2,205.09,4.8759]
[1731303427789,30.79346254,205.19,205.11,30.79346254]
[1731303428475,30.79346254,205.16,205.08,30.79346254]
[1731303428802,30.79346254,205.11,205.04,4.877]
[1731303428979,54.69583654,205.12,205.05,30.79346254]
[1731303429296,30.91895254,205.12,205.05,30.79346254]
[1731303429476,30.91895254,205.12,205.04,35.67046254]
[1731303429686,30.91895254,205.12,205.04,30.79346254]
[1731303429872,30.91895254,205.12,205.05,30.79346254]
[1731303430077,47.27168971,205.2,205.04,4.877]
[1731303430078,23.776884,205.15,205.09,30.79346254]
[1731303430282,23.776884,205.16,205.09,30.79346254]
[1731303430491,0.12549,205.15,205.08,30.79346254]
[1731303430804,0.12549,205.15,205.1,30.79346254]
[1731303430991,30.79346254,205.18,205.1,30.79346254]
[1731303431175,6.0806,205.2,205.16,30.79346254]
[1731303432386,6.0806,205.2,205.16,35.66756254]
[1731303432778,6.0806,205.2,205.05,6.2859]
[1731303432779,0.12549,205.19,205.05,6.2859]
[1731303433011,0.12549,205.14,205.01,4.8778]
[1731303433179,30.79346254,205.13,205.01,4.8778]
[1731303433380,23.902374,205.12,205.01,4.8778]
[1731303433592,30.79346254,205.11,205.01,4.8778]
[1731303433900,30.79346254,205.13,205.05,30.79346254]
[1731303434475,30.79346254,205.15,205.07,30.79346254]
[1731303434680,30.91895254,205.16,205.08,30.79346254]
[1731303434893,23.902374,205.16,205.1,30.79346254]
[1731303435112,0.12549,205.16,205.09,30.79346254]
[1731303435396,23.902374,205.16,205.09,30.79346254]
[1731303435988,0.12549,205.16,205.12,30.79346254]
[1731303436285,0.12549,205.16,205.13,30.79346254]
[1731303436788,0.12549,205.16,205.1,30.79346254]
[1731303437384,0.12549,205.16,205.05,4.8768]
[1731303437586,0.12549,205.16,205.11,30.79346254]
[1731303437787,0.12549,205.16,205.13,30.79346254]
[1731303438092,0.12549,205.16,205.12,30.79346254]
[1731303438291,0.12549,205.16,205.13,30.79346254]
[1731303438692,0.12549,205.16,205.12,30.79346254]
[1731303439201,0.12549,205.16,205.15,30.79346254]
[1731303439696,0.12549,205.16,205.07,16.2259]
[1731303439697,0.12549,205.16,205.13,30.79346254]
[1731303439907,0.12549,205.16,205.11,30.79346254]
[1731303440082,0.12549,205.16,205.1,30.79346254]
[1731303440399,0.1,205.07,204.91,30.91895254]
[1731303440607,30.79346254,204.97,204.92,4.8798]
[1731303441229,0.12549,204.96,204.91,30.91895254]
[1731303441499,0.12549,204.96,204.91,0.12549]
[1731303442505,30.79346254,204.99,204.91,30.91895254]
[1731303442889,0.12549,204.98,204.91,30.91895254]
[1731303443584,0.12549,204.98,204.91,35.79905254]
[1731303443784,30.79346254,204.97,204.91,5.00559]
[1731303444085,30.79346254,204.97,204.91,0.12549]
[1731303444086,0.12549,204.96,204.91,0.12549]
[1731303445089,0.12549,204.96,204.91,5.00559]
[1731303445595,30.79346254,204.97,204.91,5.00559]
[1731303446187,30.91895254,204.96,204.91,5.00559]
[1731303446383,30.79346254,204.95,204.91,5.00559]
[1731303447410,30.79346254,204.95,204.91,0.12549]
[1731303449310,0.12549,204.94,204.91,0.12549]
[1731303449508,0.1,205.01,204.91,0.12549]
[1731303449509,0.12549,204.92,204.91,0.12549]
[1731303449806,30.79346254,204.93,204.91,0.12549]
[1731303450706,23.902374,204.92,204.91,0.12549]
[1731303451206,68.70527933,204.92,204.88,0.12549]
[1731303451503,54.69583654,204.89,204.88,0.12549]
[1731303452790,59.57643654,204.89,204.88,0.12549]
[1731303455217,0.12549,204.88,204.8,0.12549]
[1731303455391,30.91895254,204.81,204.8,0.12549]
[1731303457309,30.79346254,204.83,204.8,0.12549]
[1731303457510,0.12549,204.82,204.8,0.12549]
[1731303458809,54.69583654,204.81,204.8,0.12549]
[1731303459191,60.90133594,204.81,204.8,0.12549]
[1731303460200,47.1976734,204.8,204.65,30.79346254]
[1731303460488,23.776884,204.76,204.7,30.79346254]
[1731303461112,23.776884,204.78,204.73,30.79346254]